fUST/lending_fUST_20260121
["ID","MTS","AMOUNT","RATE_DAILY","PERIOD"]
[402858814,1768944640311,-220.84929612,0.00018866,2]
[402858817,1768944640320,-42275.59240046,0.0001888,2]
[402858868,1768944640771,-841.52588397,0.0001888,2]
[402858871,1768944640782,-434.47876755,0.0001888,2]
[402859065,1768944643660,-4285.0657763,0.0001888,2]
[402859070,1768944643771,-302.62139999,0.0001888,2]
[402859071,1768944643783,-1353.27469436,0.0001888,2]
[402859079,1768944646585,-159647.96122262,0.0001888,2]
[402859080,1768944646597,-1728.98715621,0.0001888,2]
[402862897,1768944689368,500.0,0.00027397,120]
[402862926,1768944689648,500.0,0.00027397,120]
[402862954,1768944689921,281.78,0.00027397,120]
[402863132,1768944691881,500.0,0.00027397,120]
[402864003,1768944701539,500.0,0.00027397,120]
[402864033,1768944701821,275.8,0.00027397,120]
[402864272,1768944704241,500.0,0.00027397,120]
[402864593,1768944707301,500.0,0.00027397,120]
[402864625,1768944707600,500.0,0.00027397,120]
[402864656,1768944707906,329.82,0.00027397,120]
[402864841,1768944709802,500.0,0.00027397,120]
[402864956,1768944711240,500.0,0.00027397,120]
[402864992,1768944711571,500.0,0.00027397,120]
[402865027,1768944711913,644.95,0.00027397,120]
[402865325,1768944715013,500.0,0.00027397,120]
[402865346,1768944715217,500.0,0.00027397,120]
[402865373,1768944715475,426.04,0.00027397,120]
[402865836,1768944720465,500.0,0.00027397,120]
[402865862,1768944720707,228.77,0.00027397,120]
[402865874,1768944720828,500.0,0.00027397,120]
[402866054,1768944722699,500.0,0.00027397,120]
[402866127,1768944723400,500.0,0.00027397,120]
[402866220,1768944724346,500.0,0.00027397,120]
[402866310,1768944725273,647.35,0.00027397,120]
[402866363,1768944726052,500.0,0.00027397,120]
[402866531,1768944727723,500.0,0.00027397,120]
[402866753,1768944729971,500.0,0.00027397,120]
[402867880,1768944741710,500.0,0.00027397,120]
[402868477,1768944748316,500.0,0.00027397,120]
[402868564,1768944749696,557.85,0.00027397,120]
[402868592,1768944750108,500.0,0.00027397,120]
[402868599,1768944750360,226.59,0.00027397,120]
[402868854,1768944753002,500.0,0.00027397,120]
[402869045,1768944755303,500.0,0.00027397,120]
[402869126,1768944756221,500.0,0.00027397,120]
[402869289,1768944758032,500.0,0.00027397,120]
[402869305,1768944758720,348.9788039,0.00027397,120]
[402869309,1768944761549,500.0,0.00027397,120]
[402869310,1768944761771,560.67,0.00027397,120]
[402869311,1768944765159,500.0,0.00027397,120]
[402869312,1768944766988,500.0,0.00027397,120]
[402869313,1768944767251,390.03,0.00027397,120]
[402869314,1768944770253,500.0,0.00027397,120]
[402869315,1768944770579,500.0,0.00027397,120]
[402869316,1768944770697,624.31598401,0.00027397,120]
[402869317,1768944773947,500.0,0.00027397,120]
[402869318,1768944774069,500.0,0.00027397,120]
[402869319,1768944774191,268.12,0.00027397,120]
[402869320,1768944776095,615.65,0.00027397,120]
[402869321,1768944777552,500.0,0.00027397,120]
[402869322,1768944779079,572.36,0.00027397,120]
[402869323,1768944779268,500.0,0.00027397,120]
[402869324,1768944779502,500.0,0.00027397,120]
[402869325,1768944779741,500.0,0.00027397,120]
[402869326,1768944780004,500.0,0.00027397,120]
[402869327,1768944780232,176.82,0.00027397,120]
[402869328,1768944780987,500.0,0.00027397,120]
[402869329,1768944781869,500.0,0.00027397,120]
[402869330,1768944782674,500.0,0.00027397,120]
[402869331,1768944790160,529.99,0.00027397,120]
[402869332,1768944791558,500.0,0.00027397,120]
[402869333,1768944791804,500.0,0.00027397,120]
[402869334,1768944792059,500.0,0.00027397,120]
[402869335,1768944792310,500.0,0.00027397,120]
[402869336,1768944792585,319.11,0.00027397,120]
[402869337,1768944794639,500.0,0.00027397,120]
[402869338,1768944795254,500.0,0.00027397,120]
[402869339,1768944797053,500.0,0.00027397,120]
[402869340,1768944798821,500.0,0.00027397,120]
[402869341,1768944799057,500.0,0.00027397,120]
[402869342,1768944799292,500.0,0.00027397,120]
[402869343,1768944799531,500.0,0.00027397,120]
[402869344,1768944799767,500.0,0.00027397,120]
[402869345,1768944799892,500.0,0.00027397,120]
[402869346,1768944800010,500.0,0.00027397,120]
[402869347,1768944800136,159.86,0.00027397,120]
[402869348,1768944800265,500.0,0.00027397,120]
[402869349,1768944800513,500.0,0.00027397,120]
[402869350,1768944800752,500.0,0.00027397,120]
[402869351,1768944801000,500.0,0.00027397,120]
[402869352,1768944801115,500.0,0.00027397,120]
[402869353,1768944801245,500.0,0.00027397,120]
[402869354,1768944801491,500.0,0.00027397,120]
[402869355,1768944801724,357.57,0.00027397,120]
[402869356,1768944801844,500.0,0.00027397,120]
[402869357,1768944801989,500.0,0.00027397,120]
[402869358,1768944802201,500.0,0.00027397,120]
[402869359,1768944802422,375.31,0.00027397,120]
[402869360,1768944802929,500.0,0.00027397,120]
[402869361,1768944803799,500.0,0.00027397,120]
[402869362,1768944803948,500.0,0.00027397,120]
[402869363,1768944804100,427.12,0.00027397,120]
[402869364,1768944804244,215.05,0.00027397,120]
[402869365,1768944804436,500.0,0.00027397,120]
[402869366,1768944804593,448.78,0.00027397,120]
[402869367,1768944805541,500.0,0.00027397,120]
[402869368,1768944805797,500.0,0.00027397,120]
[402869369,1768944805999,500.0,0.00027397,120]
[402869370,1768944806266,500.0,0.00027397,120]
[402869371,1768944806494,500.0,0.00027397,120]
[402869372,1768944806759,351.42,0.00027397,120]
[402869373,1768944807162,500.0,0.00027397,120]
[402869374,1768944807451,500.0,0.00027397,120]
[402869375,1768944807647,500.0,0.00027397,120]
[402869376,1768944807859,500.0,0.00027397,120]
[402869377,1768944808073,175.75,0.00027397,120]
[402869378,1768944808595,500.0,0.00027397,120]
[402869379,1768944809264,500.0,0.00027397,120]
[402869380,1768944809904,500.0,0.00027397,120]
[402869381,1768944810154,500.0,0.00027397,120]
[402869382,1768944810422,500.0,0.00027397,120]
[402869383,1768944810578,256.22,0.00027397,120]
[402869384,1768944810735,500.0,0.00027397,120]
[402869385,1768944810895,616.75,0.00027397,120]
[402869386,1768944811720,500.0,0.00027397,120]
[402869387,1768944812188,500.0,0.00027397,120]
[402869388,1768944812478,557.38,0.00027397,120]
[402869389,1768944812694,500.0,0.00027397,120]
[402869390,1768944813328,500.0,0.00027397,120]
[402869391,1768944813447,611.92,0.00027397,120]
[402869392,1768944814126,500.0,0.00027397,120]
[402869393,1768944814298,563.42,0.00027397,120]
[402869394,1768944816596,596.66,0.00027397,120]
[402869395,1768944816719,500.0,0.00027397,120]
[402869396,1768944818707,500.0,0.00027397,120]
[402869397,1768944818872,500.0,0.00027397,120]
[402869398,1768944819900,500.0,0.00027397,120]
[402869399,1768944820153,500.0,0.00027397,120]
[402869400,1768944820393,500.0,0.00027397,120]
[402869401,1768944820615,637.02,0.00027397,120]
[402869402,1768944820999,500.0,0.00027397,120]
[402869403,1768944821659,499.99622273,0.00027397,120]
[402869404,1768944822702,500.0,0.00027397,120]
[402869405,1768944822907,500.0,0.00027397,120]
[402869406,1768944823061,500.0,0.00027397,120]
[402869407,1768944823192,244.06,0.00027397,120]
[402869408,1768944823684,500.0,0.00027397,120]
[402869409,1768944824372,500.0,0.00027397,120]
[402869410,1768944826964,566.78,0.00027397,120]
[402869411,1768944827981,500.0,0.00027397,120]
[402869412,1768944828266,500.0,0.00027397,120]
[402869413,1768944829518,500.0,0.00027397,120]
[402869414,1768944829630,500.0,0.00027397,120]
[402869415,1768944829750,500.0,0.00027397,120]
[402869416,1768944830091,500.0,0.00027397,120]
[402869417,1768944831329,597.06,0.00027397,120]
[402869418,1768944831664,500.0,0.00027397,120]
[402869419,1768944832220,500.0,0.00027397,120]
[402869420,1768944832431,533.59,0.00027397,120]
[402869421,1768944833116,500.0,0.00027397,120]
[402869422,1768944835289,500.0,0.00027397,120]
[402869423,1768944835563,479.4,0.00027397,120]
[402869424,1768944837964,500.0,0.00027397,120]
[402869425,1768944838178,565.91,0.00027397,120]
[402869426,1768944840117,500.0,0.00027397,120]
[402869427,1768944840468,500.0,0.00027397,120]
[402869428,1768944840720,500.0,0.00027397,120]
[402869429,1768944840873,500.0,0.00027397,120]
[402869430,1768944840995,500.0,0.00027397,120]
[402869431,1768944841121,383.19,0.00027397,120]
[402869432,1768944841245,500.0,0.00027397,120]
[402869433,1768944841369,500.0,0.00027397,120]
[402869434,1768944841491,500.0,0.00027397,120]
[402869435,1768944841609,500.0,0.00027397,120]
[402869436,1768944841732,500.0,0.00027397,120]
[402869437,1768944841854,500.0,0.00027397,120]
[402869438,1768944841991,384.99,0.00027397,120]
[402869439,1768944842131,500.0,0.00027397,120]
[402869440,1768944842258,500.0,0.00027397,120]
[402869441,1768944842384,380.81,0.00027397,120]
[402869442,1768944843503,500.0,0.00027397,120]
[402869443,1768944843628,500.0,0.00027397,120]
[402869444,1768944843972,500.0,0.00027397,120]
[402869445,1768944844099,500.0,0.00027397,120]
[402869446,1768944844265,428.59,0.00027397,120]
[402869447,1768944844388,500.0,0.00027397,120]
[402869448,1768944844634,500.0,0.00027397,120]
[402869449,1768944844875,264.47,0.00027397,120]
[402869450,1768944846411,500.0,0.00027397,120]
[402869451,1768944846640,211.48,0.00027397,120]
[402869452,1768944847731,500.0,0.00027397,120]
[402869453,1768944847851,538.58,0.00027397,120]
[402869454,1768944848337,500.0,0.00027397,120]
[402869455,1768944848744,500.0,0.00027397,120]
[402869456,1768944849159,500.0,0.00027397,120]
[402869457,1768944849393,500.0,0.00027397,120]
[402869458,1768944849509,500.0,0.00027397,120]
[402869459,1768944850107,436.78,0.00027397,120]
[402869460,1768944850290,500.0,0.00027397,120]
[402869461,1768944850972,500.0,0.00027397,120]
[402869462,1768944851094,500.0,0.00027397,120]
[402869463,1768944852361,500.0,0.00027397,120]
[402869464,1768944852749,500.0,0.00027397,120]
[402869465,1768944853295,500.0,0.00027397,120]
[402869466,1768944853515,266.79,0.00027397,120]
[402869467,1768944856975,500.0,0.00027397,120]
[402869468,1768944857703,500.0,0.00027397,120]
[402869469,1768944857914,500.0,0.00027397,120]
[402869470,1768944858264,212.6,0.00027397,120]
[402869471,1768944858385,500.0,0.00027397,120]
[402869472,1768944858516,576.8,0.00027397,120]
[402869473,1768944858653,500.0,0.00027397,120]
[402869474,1768944858892,500.0,0.00027397,120]
[402869475,1768944859184,500.0,0.00027397,120]
[402869476,1768944859587,277.68,0.00027397,120]
[402869477,1768944860128,500.0,0.00027397,120]
[402869478,1768944860297,76.29285146,0.00027397,120]
[402869511,1768945831807,-573.0,0.00010874,2]
[402869513,1768945831817,-165.69431437,0.0001104,2]
[402869515,1768945831827,-207.74812019,0.00011095,2]
[402869517,1768945831836,-1200.0,0.00011421,2]
[402869519,1768945831846,-2241.35910859,0.00011422,2]
[402869521,1768945831856,-300.0,0.00012562,2]
[402869523,1768945831866,-1680.0,0.00012563,2]
[402869524,1768945831875,-5216.67276712,0.00012803,2]
[402869526,1768945831885,-222.11868766,0.00012878,2]
[402869528,1768945831894,-195.51929095,0.0001304,2]
[402869529,1768945831903,-384.11,0.000131,2]
[402869531,1768945831914,-2150.738,0.00013263,2]
[402869533,1768945831923,-500.0,0.00013264,2]
[402869535,1768945831933,-162.380719,0.00013265,2]
[402869537,1768945831942,-168.3888056,0.00013265,2]
[402869539,1768945831952,-174.61919141,0.00013265,2]
[402869541,1768945831961,-181.08010149,0.00013265,2]
[402869543,1768945831971,-187.78006525,0.00013265,2]
[402869546,1768945831980,-194.72792766,0.00013265,2]
[402869549,1768945831990,-201.93286099,0.00013265,2]
[402869551,1768945831999,-209.40437684,0.00013265,2]
[402869553,1768945832008,-217.15233878,0.00013265,2]
[402869555,1768945832018,-225.18697532,0.00013265,2]
[402869557,1768945832027,-233.51889341,0.00013265,2]
[402869559,1768945832036,-242.15909246,0.00013265,2]
[402869561,1768945832046,-251.11897888,0.00013265,2]
[402869563,1768945832055,-260.4103811,0.00013265,2]
[402869565,1768945832065,-162.380719,0.00013265,2]
[402869567,1768945832075,-270.0455652,0.00013265,2]
[402869568,1768945832084,-280.03725112,0.00013265,2]
[402869570,1768945832093,-290.39862941,0.00013265,2]
[402869572,1768945832102,-301.1433787,0.00013265,2]
[402869574,1768945832111,-445.202766,0.00013265,2]
[402869576,1768945832121,-155.0,0.00013272,2]
[402869578,1768945832130,-500.31215205,0.00013273,2]
[402869580,1768945832139,-151.38105898,0.00013273,2]
[402869582,1768945832149,-500.37905427,0.00013273,2]
[402869584,1768945832157,-500.0,0.00013273,2]
[402869586,1768945832167,-397.72964969,0.00013273,2]
[402869588,1768945832176,-500.40688904,0.00013273,2]
[402869590,1768945832186,-500.42405081,0.00013273,2]
[402869592,1768945832195,-161.4426643,0.00013273,2]
[402869594,1768945832205,-500.47580546,0.00013273,2]
[402869596,1768945832214,-197.44536922,0.00013273,2]
[402869598,1768945832223,-500.0,0.00013273,2]
[402869600,1768945832232,-500.0,0.00013273,2]
[402869602,1768945832242,-500.50571983,0.00013273,2]
[402869604,1768945832251,-500.0,0.00013273,2]
[402869605,1768945832260,-500.20388682,0.00013273,2]
[402869607,1768945832270,-316.51377434,0.00013273,2]
[402869609,1768945832280,-500.0,0.00013273,2]
[402869611,1768945832289,-500.56110068,0.00013273,2]
[402869613,1768945832299,-500.0,0.00013273,2]
[402869615,1768945832308,-162.11077171,0.00013273,2]
[402869617,1768945832317,-500.0,0.00013273,2]
[402869619,1768945832327,-500.72589833,0.00013273,2]
[402869621,1768945832336,-500.0,0.00013273,2]
[402869623,1768945832346,-467.20193247,0.00013273,2]
[402869625,1768945832360,-500.0,0.00013273,2]
[402869627,1768945832371,-168.67149114,0.00013273,2]
[402869629,1768945832380,-500.0,0.00013273,2]
[402869631,1768945832391,-501.63441898,0.00013273,2]
[402869633,1768945832401,-534.97230774,0.00013273,2]
[402869635,1768945832411,-167.74863521,0.00013273,2]
[402869637,1768945832424,-500.5571372,0.00013273,2]
[402869639,1768945832434,-500.57336864,0.00013273,2]
[402869641,1768945832443,-500.65363027,0.00013273,2]
[402869642,1768945832453,-500.63129802,0.00013273,2]
[402869643,1768945832462,-500.0,0.00013273,2]
[402869644,1768945832471,-500.0,0.00013273,2]
[402869645,1768945832481,-501.58544378,0.00013273,2]
[402869646,1768945832491,-500.0,0.00013273,2]
[402869647,1768945832502,-500.0,0.00013273,2]
[402869648,1768945832511,-500.26762786,0.00013273,2]
[402869649,1768945832521,-500.61884438,0.00013273,2]
[402869650,1768945832531,-500.0,0.00013273,2]
[402869651,1768945832541,-500.0,0.00013273,2]
[402869652,1768945832551,-500.39897808,0.00013273,2]
[402869653,1768945832561,-500.0,0.00013273,2]
[402869654,1768945832571,-500.54261112,0.00013273,2]
[402869655,1768945832580,-261.76520021,0.00013273,2]
[402869656,1768945832590,-500.0,0.00013273,2]
[402869657,1768945832599,-520.46456325,0.00013273,2]
[402869658,1768945832608,-501.20324872,0.00013273,2]
[402869659,1768945832618,-501.02612247,0.00013273,2]
[402869660,1768945832627,-500.0,0.00013273,2]
[402869661,1768945832637,-500.0,0.00013273,2]
[402869662,1768945832647,-495.83786527,0.00013273,2]
[402869663,1768945832656,-185.75325763,0.00013273,2]
[402869664,1768945832665,-500.58686023,0.00013273,2]
[402869665,1768945832679,-633.30780711,0.00013273,2]
[402869666,1768945832688,-500.92469011,0.00013273,2]
[402869667,1768945832698,-500.0,0.00013273,2]
[402869668,1768945832708,-500.0,0.00013273,2]
[402869669,1768945832717,-500.84542229,0.00013273,2]
[402869670,1768945832727,-500.78555295,0.00013273,2]
[402869671,1768945832736,-504.14790343,0.00013273,2]
[402869672,1768945832746,-500.16888292,0.00013273,2]
[402869673,1768945832755,-500.0,0.00013273,2]
[402869674,1768945832764,-300.0,0.00013673,2]
[402869675,1768945832774,-300.0,0.00013673,2]
[402869676,1768945832783,-500.0,0.00013698,2]
[402869677,1768945832793,-517.59985725,0.00013698,2]
[402869678,1768945832802,-500.0,0.00013698,2]
[402869679,1768945832811,-255.24454633,0.00013698,2]
[402869680,1768945832822,-500.0,0.00013698,2]
[402869681,1768945832831,-500.0,0.00013698,2]
[402869682,1768945832841,-500.0,0.00013698,2]
[402869683,1768945832851,-500.0,0.00013698,2]
[402869684,1768945832861,-500.0,0.00013698,2]
[402869685,1768945832871,-151.0,0.00013699,2]
[402869686,1768945832880,-420.0,0.00013782,2]
[402869687,1768945832890,-2230.315306,0.00013811,2]
[402869688,1768945832900,-461.67526835,0.00013813,2]
[402869689,1768945832910,-2351.0,0.00013819,2]
[402869690,1768945832920,-202.16315238,0.00014221,2]
[402869691,1768945832931,-351.72247365,0.00014359,2]
[402869692,1768945832940,-443.67060211,0.00015011,2]
[402869693,1768945832950,-225.34426754,0.0001504,2]
[402869694,1768945832959,-587.0,0.00015121,2]
[402869695,1768945832971,-3292.0,0.00015201,2]
[402869696,1768945832981,-500.0,0.00015399,2]
[402869697,1768945832991,-1500.0,0.000154,2]
[402869698,1768945833001,-241.26873294,0.000154,2]
[402869699,1768945833010,-181.59984047,0.000154,2]
[402869700,1768945833020,-515.17500042,0.000154,2]
[402869701,1768945833029,-150.56176428,0.000154,2]
[402869702,1768945833039,-219.35837433,0.00015658,2]
[402869703,1768945833049,-500.0,0.00015749,30]
[402869704,1768945833058,-500.0,0.00015749,30]
[402869705,1768945833067,-500.0,0.00015749,30]
[402869706,1768945833077,-500.0,0.00015749,30]
[402869707,1768945833086,-500.0,0.00015749,30]
[402869708,1768945833095,-500.0,0.00015749,30]
[402869709,1768945833105,-500.0,0.00015749,30]
[402869710,1768945833115,-500.0,0.00015749,30]
[402869711,1768945833125,-817.66701819,0.00015749,30]
[402869712,1768945833135,-515.17500042,0.00015965,9]
[402869713,1768945833144,-515.17500042,0.00016529,17]
[402869714,1768945833154,-823.0,0.00016591,2]
[402869715,1768945833163,-151.0,0.00016591,2]
[402869716,1768945833173,-150.56176428,0.00016718,20]
[402869717,1768945833183,-1268.0,0.00016721,2]
[402869718,1768945833192,-255.16924412,0.0001704,2]
[402869719,1768945833202,-515.17500042,0.00017094,25]
[402869720,1768945833213,-515.17500042,0.00017659,32]
[402869721,1768945833223,-179.140237,0.0001796,2]
[402869722,1768945833233,-150.56176428,0.00018035,38]
[402869723,1768945833242,-151.0,0.00018202,2]
[402869724,1768945833252,-705.0,0.00018202,2]
[402869725,1768945833262,-515.17500042,0.00018223,40]
[402869726,1768945833272,-1041.66666667,0.00018304,2]
[402869727,1768945833282,-500.0,0.00018582,2]
[402869728,1768945833292,-1368.0,0.00018582,2]
[402869729,1768945833302,-629.0,0.00018582,2]
[402869730,1768945833312,-2148.0,0.00018582,2]
[402869731,1768945833321,-500.0,0.00018589,2]
[402869732,1768945833331,-500.0,0.00018589,2]
[402869733,1768945833341,-500.0,0.00018589,2]
[402869734,1768945833351,-500.0,0.00018589,2]
[402869735,1768945833363,-500.0,0.00018589,2]
[402869736,1768945833372,-500.0,0.00018589,2]
[402869737,1768945833382,-1268.81046957,0.0001862,2]
[402869738,1768945833392,-377.1,0.000187,3]
[402869739,1768945833402,-563.67182902,0.00018726,2]
[402869740,1768945833411,-500.0,0.00018726,2]
[402869741,1768945833423,-500.0,0.00018726,2]
[402869742,1768945833433,-500.0,0.00018726,2]
[402869743,1768945833443,-500.0,0.00018726,2]
[402869744,1768945833453,-500.0,0.00018726,2]
[402869745,1768945833463,-171.1568643,0.0001878,2]
[402869746,1768945833472,-515.17500042,0.00018788,48]
[402869747,1768945833482,-730.86,0.0001879,3]
[402869748,1768945833492,-171.15686429,0.000188,2]
[402869749,1768945833501,-16455.75728555,0.000188,2]
[402869750,1768945833510,-438.86551987,0.000188,30]
[402869751,1768945833520,-178.37997436,0.000188,30]
[402869752,1768945833529,-168.7345613,0.000188,30]
[402869753,1768945833539,-500.0,0.000188,30]
[402869754,1768945833549,-500.0,0.000188,30]
[402869755,1768945833558,-500.0,0.000188,30]
[402869756,1768945833568,-500.0,0.000188,30]
[402869757,1768945833577,-500.0,0.000188,30]
[402869758,1768945833587,-500.0,0.000188,30]
[402869759,1768945833597,-500.0,0.000188,30]
[402869760,1768945833607,-500.0,0.000188,30]
[402869761,1768945833616,-500.0,0.000188,30]
[402869762,1768945833626,-500.0,0.00018863,2]
[402869763,1768945833636,-500.0,0.00018863,2]
[402869764,1768945833646,-500.0,0.00018863,2]
[402869765,1768945833655,-500.0,0.00018863,2]
[402869766,1768945833664,-500.0,0.00018863,2]
[402869767,1768945833674,-344.544,0.00018863,2]
[402869768,1768945833684,-487.24,0.0001887,3]
[402869769,1768945833693,-243.62,0.0001887,3]
[402869770,1768945833703,-175021.75956495,0.0001888,2]
[402869785,1768945837730,-5000.0,0.00010765,2]
[402869786,1768945837739,-3742.35934221,0.0001888,2]
[402869787,1768945837750,-125280.55394042,0.0001888,2]
[402869788,1768945837761,-3471.74130692,0.0001888,2]
[402869789,1768945837790,-1096.75,0.0001888,2]
[402869790,1768945837802,-4087.42876137,0.0001888,2]
[402869791,1768945837812,-2672.73563148,0.0001888,2]
[402870403,1768945845830,-441.315,0.0001888,2]
[402870405,1768945845945,-82207.55123581,0.0001888,2]
[402870406,1768945845955,-2000.0,0.0001888,2]
[402870408,1768945845965,-2000.0,0.0001888,2]
[402870410,1768945845974,-2000.0,0.0001888,2]
[402870412,1768945845983,-2000.0,0.0001888,2]
[402870413,1768945845993,-2000.0,0.0001888,2]
[402870414,1768945846002,-2000.0,0.0001888,2]
[402870416,1768945846012,-2000.0,0.0001888,2]
[402870418,1768945846023,-2000.0,0.0001888,2]
[402870421,1768945846042,-2000.0,0.0001888,2]
[402870422,1768945846057,-2000.0,0.0001888,2]
[402870423,1768945846069,-2000.0,0.0001888,2]
[402870424,1768945846080,-2000.0,0.0001888,2]
[402870425,1768945846092,-2000.0,0.0001888,2]
[402870426,1768945846103,-2000.0,0.0001888,2]
[402870427,1768945846114,-2000.0,0.0001888,2]
[402870428,1768945846125,-2000.0,0.0001888,2]
[402870429,1768945846136,-1646.276,0.0001888,2]
[402870430,1768945846148,-1000.0,0.0001888,2]
[402870431,1768945846159,-1000.0,0.0001888,2]
[402870432,1768945846170,-1000.0,0.0001888,2]
[402870433,1768945846180,-1000.0,0.0001888,2]
[402870434,1768945846190,-475.0,0.0001888,2]
[402870435,1768945846201,-475.0,0.0001888,2]
[402870436,1768945846212,-475.0,0.0001888,2]
[402870437,1768945846222,-475.0,0.0001888,2]
[402870438,1768945846233,-475.0,0.0001888,2]
[402870439,1768945846244,-475.0,0.0001888,2]
[402870440,1768945846255,-475.0,0.0001888,2]
[402870441,1768945846267,-151.0,0.0001888,2]
[402870442,1768945846278,-161.730314,0.0001888,2]
[402870443,1768945846288,-50000.0,0.0001888,2]
[402870444,1768945846298,-500.0,0.00018899,2]
[402870445,1768945846308,-500.0,0.00018899,2]
[402870446,1768945846319,-500.0,0.00018899,2]
[402870447,1768945846329,-500.0,0.00018899,2]
[402870448,1768945846339,-500.0,0.00018899,2]
[402870449,1768945846349,-500.0,0.00018899,2]
[402870450,1768945846364,-500.0,0.00018899,2]
[402870451,1768945846375,-534.51550847,0.00018899,2]
[402870452,1768945846386,-200.0,0.00018899,2]
[402870453,1768945846397,-71472.51813983,0.000189,2]
[402870551,1768947031875,-838.73973918,9.134e-05,2]
[402870553,1768947031887,-4161.26026082,9.134e-05,2]
[402870556,1768947031897,-548.0,9.134e-05,2]
[402870557,1768947031907,-159.74,9.446e-05,2]
[402870559,1768947031917,-188.68412768,0.00010136,2]
[402870561,1768947031926,-300.0,0.00011421,2]
[402870563,1768947031935,-300.0,0.00011421,2]
[402870565,1768947031944,-300.0,0.00011421,2]
[402870567,1768947031953,-524.0778749,0.00011422,2]
[402870569,1768947031963,-5118.19154577,0.00011422,2]
[402870571,1768947031971,-507.21278218,0.00011422,2]
[402870573,1768947031981,-50000.0,0.00011894,2]
[402870575,1768947031990,-500.0,0.00011894,2]
[402870577,1768947031999,-500.0,0.00011894,2]
[402870579,1768947032011,-500.0,0.00011894,2]
[402870581,1768947032020,-500.0,0.00011894,2]
[402870583,1768947032029,-500.0,0.00011894,2]
[402870585,1768947032039,-500.0,0.00011894,2]
[402870587,1768947032047,-500.0,0.00011894,2]
[402870589,1768947032057,-500.0,0.00011894,2]
[402870591,1768947032066,-500.0,0.00011894,2]
[402870593,1768947032075,-500.0,0.00011894,2]
[402870595,1768947032084,-500.0,0.00011894,2]
[402870597,1768947032093,-500.0,0.00011894,2]
[402870599,1768947032103,-500.0,0.00011894,2]
[402870601,1768947032112,-500.0,0.00011894,2]
[402870603,1768947032121,-500.0,0.00011894,2]
[402870605,1768947032131,-518.62971563,0.00011894,2]
[402870607,1768947032140,-500.0,0.00011894,2]
[402870609,1768947032149,-500.0,0.00011894,2]
[402870611,1768947032159,-197.32918514,0.00011894,2]
[402870613,1768947032168,-500.0,0.00011894,2]
[402870615,1768947032178,-500.0,0.00011894,2]
[402870617,1768947032187,-500.0,0.00011894,2]
[402870619,1768947032197,-500.0,0.00011894,2]
[402870621,1768947032206,-500.0,0.00011894,2]
[402870623,1768947032216,-500.0,0.00011894,2]
[402870625,1768947032225,-280.18838341,0.00011895,2]